Cogmind - Beta 11 X5 @@@ ROGUE MODE // 2021.07.09 @ 01:46:57 Player: AlmondRoll Result: Escaped! Performance ------------- Evolutions (9) 4500 Regions Visited (23) 4600 Robots Destroyed (166) 830 Value Destroyed (4965) 4965 Prototype IDs (46) 920 Alien Tech Used (3) 600 Bonus (6814) 6814 TOTAL SCORE: 23229 Bonus ------- High Alert Combat Kills 71 Follower Combat Kills 834 Met Warlord at Base 500 MAIN.C Attacked Warlord 500 Met Warlord at Research 2000 Win 3000 Friendly Fire -91 Cogmind --------- Core Integrity 1571/1600 Matter 245/300 Energy 1115/1300 System Corruption 0% Temperature Cool (7) Movement Hovering (31) Location To Epsilon Eridani Parts ------- > --- POWER (2) -------- Vortex Chain Reactor > --- PROPULSION (8) --- Gravmag Array Linear Gravjet Cooled Antigrav System Antigrav Array Cooled Linear Gravjet Combat Linear Gravjet > --- UTILITY (11) ----- Advanced Power Amplifier Medium Storage Unit Experimental Energy Well Long-range Sensor Array Advanced Signal Interpreter Experimental Melee Analysis Suite Experimental Target Analyzer Advanced Reaction Control System Experimental Focal Shield Experimental Force Field > --- WEAPON (4) ------- Sigix Broadsword Sigix Broadsword > --- INVENTORY (10) --- Improved Antigrav System Improved Antigrav System Advanced Weight Redist. System Advanced Armor Integrity Analyzer Improved Stasis Canceller Enhanced Nova Cannon Missile Launcher Phasing Sabre Peak State ------------ > --- POWER ------------ Vortex Chain Reactor > --- PROPULSION ------- Gravmag Array Linear Gravjet Cooled Antigrav System Antigrav Array Cooled Linear Gravjet Combat Linear Gravjet > --- UTILITY ---------- Advanced Power Amplifier Medium Storage Unit Experimental Energy Well Long-range Sensor Array Advanced Signal Interpreter Experimental Melee Analysis Suite Experimental Target Analyzer Advanced Reaction Control System Advanced Phase Shifter Experimental Focal Shield Experimental Force Field > --- WEAPON ----------- Sigix Broadsword Sigix Broadsword > --- INVENTORY -------- Improved Antigrav System Improved Antigrav System Advanced Weight Redist. System Advanced Armor Integrity Analyzer Improved Stasis Canceller Enhanced Nova Cannon Missile Launcher Phasing Sabre [Rating: 224] Favorites ----------- Power Vortex Chain Reactor Engine Improved Deuterium Engine Power Core Micro Fission Core Reactor Vortex Chain Reactor Propulsion Light Treads Treads Light Treads Leg Aluminum Leg Wheel Wheel Hover Unit Cooled Antigrav System Flight Unit Q-thruster Utility Huge Storage Unit Device Improved Heat Sink Storage Huge Storage Unit Processor Advanced Signal Interpreter Hackware Hacking Suite Protection Improved Medium Armor Plating Weapon Autogun Energy Gun Medium Laser Energy Cannon Heavy Plasma Cannon Ballistic Gun Autogun Ballistic Cannon Enhanced Gauss Cannon Launcher Precision Rocket Launcher Slashing Weapon Phasing Sabre Piercing Weapon Force Lance Build | -11 -10 -9 -9 -8 -7 -7 -7 -6 -6 -6 -5 -5 -5 -5 -5 -5 -4 -4 -3 -3 -2 -2 -1 ------- Run | Scr Mat Mat Min Mat Fac Low Low Fac Was Fac Fac Was Fac Upp Upp War Pro Fac Res Qua Res Tes Acc Slots Evolved 18 | . . 2 . 2 2 . . 2 . . 2 . . . . . . 2 2 . 2 . 2 Power 1 | . . . . . . . . . . . 1 . . . . . . . . . . . . Propulsion 6 | . . 2 . 2 . . . . . . . . . . . . . 1 . . 1 . . Utility 9 | . . . . . 1 . . 2 . . 1 . . . . . . 1 2 . 1 . 1 Weapon 2 | . . . . . 1 . . . . . . . . . . . . . . . . . 1 Parts Attached 319 | 2 9 22 . 21 34 14 3 59 5 3 . 8 26 2 1 21 4 4 6 14 34 21 6 Power 22 | . 2 1 . 1 1 1 1 5 1 . . 1 4 . . 4 . . . . . . . Engine 15 | . 2 1 . 1 1 1 1 3 . . . 1 3 . . 1 . . . . . . . Core 5 | . . . . . . . . 2 1 . . . 1 . . 1 . . . . . . . Reactor 2 | . . . . . . . . . . . . . . . . 2 . . . . . . . Propulsion 75 | 2 2 14 . 10 13 4 2 9 2 . . 2 5 . . 2 . 2 . 2 4 . . Treads 49 | . . 9 . 10 13 4 2 9 2 . . . . . . . . . . . . . . Leg . | . . . . . . . . . . . . . . . . . . . . . . . . Wheel 9 | 2 2 5 . . . . . . . . . . . . . . . . . . . . . Hover 16 | . . . . . . . . . . . . 1 5 . . 2 . 2 . 2 4 . . Flight 1 | . . . . . . . . . . . . 1 . . . . . . . . . . . Utility 134 | . 2 2 . 4 9 2 . 19 . 2 . 2 14 2 . 11 2 1 6 10 27 17 2 Device 84 | . 1 . . 3 4 1 . 13 . . . 1 9 1 . 8 1 1 3 6 16 14 2 Storage 8 | . 1 1 . . . . . . . . . . 1 1 . . . . 1 1 1 1 . Processor 12 | . . . . . 1 1 . 1 . 2 . . 1 . . 1 . . . . 5 . . Hackware 8 | . . . . . 4 . . 3 . . . . . . . . . . . . . 1 . Protection 22 | . . 1 . 1 . . . 2 . . . 1 3 . . 2 1 . 2 3 5 1 . Artifact . | . . . . . . . . . . . . . . . . . . . . . . . . Weapon 88 | . 3 5 . 6 11 7 . 26 2 1 . 3 3 . 1 4 2 1 . 2 3 4 4 Energy Gun 23 | . 3 2 . 3 4 3 . 6 . . . 1 . . . . . . . . . 1 . Energy Cannon 14 | . . . . . . . . 9 . . . . . . . 1 . . . . 1 2 1 Ballistic Gun 23 | . . 2 . 1 6 3 . 6 1 1 . 1 1 . . 1 . . . . . . . Ballistic Cannon 9 | . . . . . 1 . . 1 . . . 1 1 . 1 1 1 . . 1 . 1 . Launcher 10 | . . 1 . 2 . . . 4 1 . . . . . . 1 1 . . . . . . Special Weapon . | . . . . . . . . . . . . . . . . . . . . . . . . Impact Weapon . | . . . . . . . . . . . . . . . . . . . . . . . . Slashing Weapon 8 | . . . . . . 1 . . . . . . 1 . . . . 1 . 1 1 . 3 Piercing Weapon 1 | . . . . . . . . . . . . . . . . . . . . . 1 . . Special Melee Weapon . | . . . . . . . . . . . . . . . . . . . . . . . . Unidentified Prototypes 47 | . . 1 . . 2 . . 4 . 1 . 1 2 . . 9 . . 1 6 10 10 . Corrupted Parts 8 | . . . . 2 . 2 2 . 2 . . . . . . . . . . . . . . System Corruption 36 | . . . . 7 . 20 7 . 2 . . . . . . . . . . . . . . Parts Lost 48 | . 3 3 . 4 4 2 1 20 3 1 1 . 1 . . . . . 1 2 . 1 1 Power 3 | . 1 1 . . . . . 1 . . . . . . . . . . . . . . . Propulsion 22 | . 1 1 . 3 3 . 1 11 2 . . . . . . . . . . . . . . Utility 11 | . . 1 . 1 . . . 3 . 1 1 . . . . . . . . 2 . 1 1 Weapon 12 | . 1 . . . 1 2 . 5 1 . . . 1 . . . . . 1 . . . . Highest Loss Streak 6 | . 2 1 . 2 3 2 1 6 3 1 1 . 1 . . . . . 1 1 . 1 1 Average Slot Usage (%) 86 | . 86 93 100 99 98 99 97 96 53 23 16 33 84 88 88 85 76 75 79 75 81 81 77 Engine 4 | . 14 6 11 9 7 7 7 4 . . . 2 5 5 5 4 . . . . . . . Reactor 1 | . . . . . . . . . . . . . . . . . 5 5 4 4 4 4 4 Treads 21 | . . 38 33 53 45 46 43 37 14 . . . . . . . . . . . . . . Wheel 2 | . 27 5 11 . . . . . . . . . . . . . . . . . . . . Hover 9 | . . . . . . . . . . . . 4 21 23 23 23 23 26 23 23 26 26 24 Device 10 | . 2 1 . 5 5 6 7 14 7 . . . 15 17 17 15 11 15 19 19 19 17 21 Storage 7 | . 14 11 11 9 7 7 7 6 3 . . . 2 5 5 5 5 5 4 4 8 8 8 Processor 5 | . . . . . 2 6 7 6 6 14 11 11 5 5 5 6 11 10 9 9 13 13 12 Hackware 1 | . . . . . 5 . . 4 6 6 4 . . . . . . . . . . 3 . Protection 2 | . . 8 11 3 . . . . . . . 2 8 5 5 5 5 5 9 8 . . . Energy Gun 4 | . 27 11 11 8 4 3 7 3 . . . . . . . . . . . . . . . Energy Cannon 1 | . . . . . . . . 7 . . . . . . . . . . . . . 3 . Ballistic Gun 7 | . . 10 11 9 17 18 15 6 8 2 . 2 4 5 5 4 . . . . . . . Ballistic Cannon 1 | . . . . . . . . . . . . 2 9 5 5 4 4 . . . . . . Slashing Weapon 2 | . . . . . . . . . . . . . . 5 5 5 5 7 8 4 7 4 7 Naked Turns . | . . . . . . . . . . . . . . . . . . . . . . . . Heaviest Build 123 | 13 34 102 102 102 102 103 103 123 106 3 . 27 68 51 53 68 68 79 84 84 95 95 91 Greatest Support 168 | 20 26 80 16 120 123 128 128 168 104 3 3 26 72 66 66 72 72 84 84 84 99 99 99 Greatest Overweight (x) 16 | . 1 6 6 . 1 . 1 1 1 . . 1 1 . . 16 . . . . . . . Average Overweight (x) . | . . 3 6 . . . . . . . . . . . . . . . . . . . . Largest Inventory Capacity 25 | 8 15 25 25 25 25 25 25 25 25 5 5 5 10 10 10 10 10 10 10 10 10 10 10 Average Capacity 16 | 8 9 20 25 25 25 25 25 25 16 5 5 5 7 10 10 10 10 10 10 10 10 10 10 Most Carried 25 | 8 14 25 25 25 25 25 25 25 19 5 5 5 10 9 10 10 10 10 10 10 10 10 10 Average Carried 16 | 5 8 17 24 24 24 24 24 23 11 4 4 3 6 9 9 9 10 9 9 9 9 9 8 Final Capacity 25 | 8 15 25 25 25 25 25 25 25 5 5 5 5 10 10 10 10 10 10 10 10 10 10 10 Final Carried 25 | 8 14 25 25 25 25 25 24 19 5 5 5 5 9 9 10 10 10 10 10 10 10 10 8 Class Distribution -------------------- 30% | Mutant 23% | Scavenger-Gunner 20% | Scavenger-Mutant 10% | Scavenger-Skirmisher 5% | Sprinter 4% | Hacker-Sprinter 3% | Gladiator Dominant Class ---------------- Mutant | -10/Materials Mutant | -9/Materials Scavenger-Mutant | -9/Mines Scavenger-Mutant | -8/Materials Scavenger-Skirmisher | -7/Factory Scavenger-Gunner | -7/Lower Caves Scavenger-Gunner | -7/Lower Caves Scavenger-Gunner | -6/Factory Mutant | -6/Waste Mutant | -6/Factory Mutant | -5/Factory Mutant | -5/Waste Scavenger-Mutant | -5/Factory Scavenger-Mutant | -5/Upper Caves Scavenger-Mutant | -5/Upper Caves Scavenger-Mutant | -5/Warlord Mutant | -4/Proximity Caves Mutant | -4/Factory Mutant | -3/Research Mutant | -3/Quarantine Sprinter | -2/Research Hacker-Sprinter | -2/Testing Sprinter | -1/Access Resources | -11 -10 -9 -9 -8 -7 -7 -7 -6 -6 -6 -5 -5 -5 -5 -5 -5 -4 -4 -3 -3 -2 -2 -1 ----------- Run | Scr Mat Mat Min Mat Fac Low Low Fac Was Fac Fac Was Fac Upp Upp War Pro Fac Res Qua Res Tes Acc Matter Collected 5515 | 220 90 497 27 358 1058 277 20 1078 . . . 309 469 20 17 181 15 94 60 39 451 162 73 Remotely 237 | . . . . . . . . 237 . . . . . . . . . . . . . . . Salvage Created 7721 | 87 722 921 . 547 1785 260 59 1450 . . . . 553 . . . . 213 62 39 809 176 38 Parts 377 | 5 21 59 . 32 100 15 3 69 . . . . 21 . . . . 7 3 3 31 5 3 Haulers Intercepted 15 | . 2 2 . 1 3 . . 2 . . . . . . . . . . . . 5 . . Recyclers Shooed 12 | 1 1 2 . . 2 . . 2 . . . . 4 . . . . . . . . . . Parts Field Recycled . | . . . . . . . . . . . . . . . . . . . . . . . . Retrieved Matter . | . . . . . . . . . . . . . . . . . . . . . . . . Parts Self-Destructed 42 | . . . . . . 14 3 . . . . . . . 1 24 . . . . . . . Prevented 15 | . . . . . . 1 . . . . . . . . 4 10 . . . . . . . Kills | -11 -10 -9 -9 -8 -7 -7 -7 -6 -6 -6 -5 -5 -5 -5 -5 -5 -4 -4 -3 -3 -2 -2 -1 ------- Run | Scr Mat Mat Min Mat Fac Low Low Fac Was Fac Fac Was Fac Upp Upp War Pro Fac Res Qua Res Tes Acc Combat Hostiles Destroyed 110 | . 12 20 . 14 21 3 1 34 . . . . . . . . . 1 1 . 2 . 1 Melee 11 | . . . . . . . . 6 . . . . . . . . . 1 1 . 2 . 1 Guns 69 | . 10 18 . 7 19 3 1 11 . . . . . . . . . . . . . . . Cannons 3 | . . . . . . . . 3 . . . . . . . . . . . . . . . AOE 24 | . . 2 . 6 2 . . 14 . . . . . . . . . . . . . . . Classes Destroyed 18 | 2 4 3 . . 4 1 . 2 . . . . 1 . . . . . . . 1 . . Worker 12 | . . 1 . 1 5 . . . . . . . . . . . . 1 1 . 1 2 . Builder 4 | . . . . . 2 . . 1 . . . . . . . . . . . . 1 . . Tunneler 2 | 1 . . . . . . . . . . . . . . . . . . . . 1 . . Hauler 15 | . 2 2 . 1 3 . . 2 . . . . . . . . . . . . 5 . . Recycler 17 | 1 1 1 . . 7 . . 2 . . . . 3 . . . . 1 . . 1 . . Operator 9 | . 2 3 . 1 1 . . 1 . . . . 1 . . . . . . . . . . Watcher 7 | . 1 . . 1 . . . . . . . . . . . . . . . 1 1 3 . Swarmer 23 | . . 6 . 7 1 . . 7 . . . . . . . . . . . . 1 . 1 Grunt 43 | . 12 10 . 4 10 . . 6 . . . . . . . . . . 1 . . . . Duelist 2 | . . . . . 1 . . . . . . . . . . . . 1 . . . . . Sentry 17 | . . 4 . 3 5 1 1 3 . . . . . . . . . . . . . . . Demolisher 2 | . . . . . . . . 2 . . . . . . . . . . . . . . . Hunter 3 | . . . . . 1 . . 2 . . . . . . . . . . . . . . . Programmer 7 | . . . . . 3 2 . 2 . . . . . . . . . . . . . . . Executioner 1 | . . . . . . . . . . . . . . . . . . . . . 1 . . Decomposer 3 | . . . . . . 3 . . . . . . . . . . . . . . . . . Samaritan 2 | . . . . . . 2 . . . . . . . . . . . . . . . . . Assembled 12 | . . . . . . . . 12 . . . . . . . . . . . . . . . Surgeon 2 | . . . . . . . . . . . . . 2 . . . . . . . . . . Best Kill Streak 9 | 2 5 5 . 5 7 1 1 9 . . . . 2 . . . . 1 1 1 4 1 1 Combat Bots Only 9 | . 4 3 . 4 5 1 1 9 . . . . . . . . . 1 1 . 1 . 1 Max Kills in Single Turn 3 | 1 2 2 . 2 2 1 1 3 . . . . 2 . . . . 1 1 1 1 1 1 Gunslinging 1 | . 1 . . . . . . . . . . . . . . . . . . . . . . Exploded 3 | . . 2 . 2 1 . . 3 . . . . . . . . . . . . . . . Melee 1 | . . . . . . . . 1 . . . . . . . . . 1 1 . 1 . 1 Uniques/NPCs Destroyed . | . . . . . . . . . . . . . . . . . . . . . . . . Combat | -11 -10 -9 -9 -8 -7 -7 -7 -6 -6 -6 -5 -5 -5 -5 -5 -5 -4 -4 -3 -3 -2 -2 -1 -------- Run | Scr Mat Mat Min Mat Fac Low Low Fac Was Fac Fac Was Fac Upp Upp War Pro Fac Res Qua Res Tes Acc Damage Taken 11268 | . 477 745 . 835 1860 313 60 3280 269 536 304 23 141 . 139 62 28 276 308 730 152 131 599 Core 1837 | . 132 84 . 70 208 27 . 301 . 503 284 23 32 . 9 . . 36 18 66 . 15 29 Absorbed by Shields 2379 | . . . . . . . . 171 . . . . . . 49 . . 134 326 767 160 133 639 Core Remaining (%) 75 | 100 47 . 79 87 . . 66 . . 5 . . . . . . 65 96 . 93 . 98 98 Volleys Fired 413 | 3 70 76 . 46 76 10 2 71 10 . . . 34 . 1 . . . . . 1 12 1 Largest 3 | 2 2 2 . 2 3 3 3 3 3 . . . 1 . 1 . . . . . 1 1 1 Hottest 255 | 90 100 73 . 68 93 136 136 255 91 . . . 57 . 57 . . . . . 120 120 120 Shots Fired 882 | 6 111 150 . 76 226 31 7 196 30 . . . 34 . 1 . . . . . 1 12 1 Gun 797 | 6 111 148 . 72 226 31 7 142 21 . . . 33 . . . . . . . . . . Cannon 63 | . . . . . . . . 47 . . . . 1 . 1 . . . . . 1 12 1 Launcher 22 | . . 2 . 4 . . . 7 9 . . . . . . . . . . . . . . Special . | . . . . . . . . . . . . . . . . . . . . . . . . Kinetic 514 | . . 74 . 42 198 26 5 113 21 . . . 34 . 1 . . . . . . . . Thermal 274 | 6 111 74 . . . 2 2 65 . . . . . . . . . . . . 1 12 1 Explosive 22 | . . 2 . 4 . . . 7 9 . . . . . . . . . . . . . . Electromagnetic 72 | . . . . 30 28 3 . 11 . . . . . . . . . . . . . . . Robot Hit Streak 23 | 5 9 12 . 13 16 7 3 13 23 . . . 7 . . . . . . . . . . Robot Miss Streak 10 | 1 3 5 . 2 5 10 4 3 2 . . . 3 . . . . . . . . . . Penetration Max 1 | . . . . . . . . . . . . . 1 . . . . . . . . . . Secondary Targets 7 | . 1 3 . . 3 . . . . . . . . . . . . . . . . . . Max Gunslinging Chain 1 | . 1 1 . . 1 . . . . . . . . . . . . . . . . . . Shots Hit Robots 680 | 5 83 97 . 61 150 17 6 145 25 . . . 21 . . . . 11 10 2 33 9 5 Core Hits 337 | 3 35 42 . 32 71 10 4 93 . . 6 . 13 . . . . 6 4 1 13 3 1 Critical Kills 13 | . . . . . . . . . . . . . 6 . . . . . . . 5 1 1 Critical Parts Destroyed 13 | . . 1 . 1 . . . . . . . . 7 . . . . . . . 2 2 . Critical Strikes 47 | . 9 8 . 1 . . . 1 1 . . . 13 . . . . 1 2 . 7 3 1 Burn 16 | . 9 7 . . . . . . . . . . . . . . . . . . . . . Destroy 27 | . . 1 . 1 . . . . 1 . . . 13 . . . . . . . 7 3 1 Corrupt 1 | . . . . . . . . 1 . . . . . . . . . . . . . . . Sever 3 | . . . . . . . . . . . . . . . . . . 1 2 . . . . Melee Attacks 157 | . . . . . . 3 . . . . . . . . 1 5 5 12 26 13 45 27 20 Impact . | . . . . . . . . . . . . . . . . . . . . . . . . Slashing 157 | . . . . . . 3 . . . . . . . . 1 5 5 12 26 13 45 27 20 Piercing . | . . . . . . . . . . . . . . . . . . . . . . . . Sneak Attacks 20 | . . . . . . 3 . . . . . . . . . . . 2 2 . 11 2 . Combat Hostiles . | . . . . . . . . . . . . . . . . . . . . . . . . Follow-up Attacks 12 | . . . . . . . . . . . . . . . . . . 2 4 . 6 . . Damage Inflicted 20870 | 61 1043 1647 . 1455 2969 641 78 4249 1386 . 85 . 163 . . . . 624 644 114 4148 1125 438 Guns 8532 | 61 1043 1425 . 1002 2462 286 78 1758 254 . . . 163 . . . . . . . . . . Cannons 1156 | . . . . . . . . 1156 . . . . . . . . . . . . . . . Explosions 3082 | . . 222 . 433 162 . . 1133 1132 . . . . . . . . . . . . . . Melee 7361 | . . . . . . 268 . . . . . . . . . . . 624 644 114 4148 1125 438 Ramming 739 | . . . . 20 345 87 . 202 . . 85 . . . . . . . . . . . . Kinetic 5516 | . . 900 . 480 2105 231 32 1351 254 . . . 163 . . . . . . . . . . Thermal 3264 | 61 1043 525 . 126 162 55 46 1246 . . . . . . . . . . . . . . . Explosive 2794 | . . 222 . 307 . . . 1133 1132 . . . . . . . . . . . . . . Electromagnetic 1196 | . . . . 522 357 . . 317 . . . . . . . . . . . . . . . Impact . | . . . . . . . . . . . . . . . . . . . . . . . . Slashing 7361 | . . . . . . 268 . . . . . . . . . . . 624 644 114 4148 1125 438 Piercing . | . . . . . . . . . . . . . . . . . . . . . . . . Highest Corruption 29 | . . . . 7 4 22 29 12 20 23 6 6 6 . . . . 2 3 10 . . . Average Corruption 6 | . . . . 6 2 9 22 5 19 22 1 6 5 . . . . 1 3 5 . . . Corruption Purged 10 | . . . . . 4 . . . . . . . 6 . . . . . . . . . . Effects 135 | . . . . 5 25 24 5 23 7 9 1 7 14 . . . . . 3 12 . . . Message Errors 43 | . . . . 2 12 5 2 7 1 2 . 2 5 . . . . . . 5 . . . Matter Fused 27 | . . . . . 3 6 1 5 1 1 . 2 5 . . . . . 1 2 . . . Heat Flow Errors 16 | . . . . 1 3 5 . 1 . 1 . 1 1 . . . . . 1 2 . . . Energy Discharges 12 | . . . . . 1 4 1 . 2 1 . 1 1 . . . . . 1 . . . . Parts Rejected 5 | . . . . . . . . 3 . 1 . . 1 . . . . . . . . . . Data Loss (minor) 13 | . . . . 1 5 3 . 1 . . . 1 1 . . . . . . 1 . . . Data Loss (major) 6 | . . . . 1 . . . 3 . . 1 . . . . . . . . 1 . . . Misfires 6 | . . . . . . 1 1 3 1 . . . . . . . . . . . . . . Misdirections 6 | . . . . . . . . . 2 3 . . . . . . . . . 1 . . . Weapon Failures 1 | . . . . . 1 . . . . . . . . . . . . . . . . . . Overload Shots . | . . . . . . . . . . . . . . . . . . . . . . . . Overflow Damage 1560 | . . 22 . 19 49 146 . 47 19 . . . . . . . . 131 92 . 423 590 22 Projectiles 17 | . . . . . . . . 17 . . . . . . . . . . . . . . . Explosions 108 | . . 22 . 19 22 . . 26 19 . . . . . . . . . . . . . . Melee 1435 | . . . . . 27 146 . 4 . . . . . . . . . 131 92 . 423 590 22 Knockbacks 6 | . . . . 1 1 . . 1 . . 3 . . . . . . . . . . . . Impact 6 | . . . . 1 1 . . 1 . . 3 . . . . . . . . . . . . Kinetic . | . . . . . . . . . . . . . . . . . . . . . . . . Secondary . | . . . . . . . . . . . . . . . . . . . . . . . . Self-Inflicted Damage 538 | . . 70 . 68 54 . . 117 192 . 37 . . . . . . . . . . . . Shots 14 | . . 2 . 2 2 . . 4 4 . . . . . . . . . . . . . . Rammed 54 | . . . . 1 15 2 . 14 . . 22 . . . . . . . . . . . . Targets Rammed 70 | . . . . 2 23 4 . 19 . . 22 . . . . . . . . . . . . Kicked . | . . . . . . . . . . . . . . . . . . . . . . . . Crushed 16 | . . . . 1 8 2 . 5 . . . . . . . . . . . . . . . Highest Temperature 360 | 80 360 246 . 130 342 278 18 311 . 188 . 247 106 . . . . . 263 174 62 277 56 Average Temperature 89 | 35 125 50 . 66 71 125 11 102 . 101 . 134 25 . . . . . 140 91 18 127 27 Received Heat Transfer 2308 | . 291 312 . 342 540 84 12 415 . 96 45 9 . . 12 . . . 56 34 8 12 40 Effects 6 | . 6 . . . . . . . . . . . . . . . . . . . . . . Energy Bleed 1 | . 1 . . . . . . . . . . . . . . . . . . . . . . Interference 3 | . 3 . . . . . . . . . . . . . . . . . . . . . . Short Circuit 1 | . 1 . . . . . . . . . . . . . . . . . . . . . . Damage (minor) 1 | . 1 . . . . . . . . . . . . . . . . . . . . . . Siege Activations . | . . . . . . . . . . . . . . . . . . . . . . . . Robots Corrupted 2 | . . . . 1 . . . 1 . . . . . . . . . . . . . . . Combat Hostiles 1 | . . . . 1 . . . . . . . . . . . . . . . . . . . Parts Fried 7 | . . . . 6 . . . 1 . . . . . . . . . . . . . . . Impact Corruptions 17 | . . . . . 4 12 . 1 . . . . . . . . . . . . . . . Robots Melted 3 | . 3 . . . . . . . . . . . . . . . . . . . . . . Combat Hostiles 2 | . 2 . . . . . . . . . . . . . . . . . . . . . . Parts Melted 25 | . 16 4 . . 1 . . 4 . . . . . . . . . . . . . . . Heat Transferred 8607 | 161 3737 1998 . 150 250 125 100 2086 . . . . . . . . . . . . . . . Parts Sabotaged . | . . . . . . . . . . . . . . . . . . . . . . . . Parts Stolen . | . . . . . . . . . . . . . . . . . . . . . . . . Parts Stripped . | . . . . . . . . . . . . . . . . . . . . . . . . Power Chain Reactions 6 | . . . . 2 4 . . . . . . . . . . . . . . . . . . Missiles Intercepted . | . . . . . . . . . . . . . . . . . . . . . . . . Alert | -11 -10 -9 -9 -8 -7 -7 -7 -6 -6 -6 -5 -5 -5 -5 -5 -5 -4 -4 -3 -3 -2 -2 -1 ------- Run | Scr Mat Mat Min Mat Fac Low Low Fac Was Fac Fac Was Fac Upp Upp War Pro Fac Res Qua Res Tes Acc Peak Influence 1328 | 10 235 305 92 389 493 . . 594 205 248 346 199 1328 . . . . 129 329 407 505 494 693 Initial 242 | . 6 35 92 35 58 . . 12 172 138 121 117 139 . . . . 9 67 184 228 222 242 Average 227 | 7 106 172 92 134 236 . . 123 182 193 204 186 897 . . . . 44 139 254 305 325 451 Maximum Alert Level 4 | . 1 1 . 1 2 . . 2 1 1 1 . 4 . . . . . 1 2 2 2 2 Low Security (%) 58 | 100 76 58 100 77 55 . . 94 90 56 58 100 14 . . . . 100 69 25 15 . . Level 1 28 | . 23 41 . 22 16 . . . 9 43 41 . . . . . . . 30 71 74 82 45 Level 2 9 | . . . . . 27 . . 5 . . . . 13 . . . . . . 2 10 17 54 Level 3 . | . . . . . . . . . . . . . 19 . . . . . . . . . . Level 4 2 | . . . . . . . . . . . . . 51 . . . . . . . . . . Level 5 . | . . . . . . . . . . . . . . . . . . . . . . . . High Security . | . . . . . . . . . . . . . . . . . . . . . . . . Max Security . | . . . . . . . . . . . . . . . . . . . . . . . . Squads Dispatched 39 | . 2 4 . . 8 . . 8 . 1 2 . 5 . . . . 1 . 3 2 2 1 Investigation 6 | . 1 1 . . . . . 1 . . . . 1 . . . . . . . 1 . 1 Extermination 4 | . . . . . 2 . . 1 . . . . . . . . . 1 . . . . . Reinforcement 24 | . 1 3 . . 3 . . 4 . 1 2 . 4 . . . . . . 3 1 2 . Assault . | . . . . . . . . . . . . . . . . . . . . . . . . Garrison 5 | . . . . . 3 . . 2 . . . . . . . . . . . . . . . Intercept . | . . . . . . . . . . . . . . . . . . . . . . . . Construction Impeded 4 | . . . . . 1 . . 1 . . 1 . 1 . . . . . . . . . . Haulers Reinforced 3 | . . . . . . . . 1 . . . . 1 . . . . . . . 1 . . Cargo Convoy Interrupts 1 | . . . . . . . . 1 . . . . . . . . . . . . . . . Stealth | -11 -10 -9 -9 -8 -7 -7 -7 -6 -6 -6 -5 -5 -5 -5 -5 -5 -4 -4 -3 -3 -2 -2 -1 --------- Run | Scr Mat Mat Min Mat Fac Low Low Fac Was Fac Fac Was Fac Upp Upp War Pro Fac Res Qua Res Tes Acc Distress Signals 23 | . 2 5 . 1 2 . . 1 . 1 1 . 2 . . . . . 2 . 4 1 1 Communications Jammed . | . . . . . . . . . . . . . . . . . . . . . . . . Distress Signals . | . . . . . . . . . . . . . . . . . . . . . . . . Times Spotted 383 | . 24 40 . 19 34 5 1 56 5 10 17 6 23 4 2 16 1 7 18 21 21 20 33 Peak Tracking Total 20 | . 4 5 . 5 5 3 1 12 6 8 7 6 6 4 1 20 1 4 13 12 8 12 12 Tactical Retreats 36 | . . 3 . 1 1 . . 4 . 1 4 . . 2 1 . 1 3 3 2 3 1 6 Traps | -11 -10 -9 -9 -8 -7 -7 -7 -6 -6 -6 -5 -5 -5 -5 -5 -5 -4 -4 -3 -3 -2 -2 -1 ------- Run | Scr Mat Mat Min Mat Fac Low Low Fac Was Fac Fac Was Fac Upp Upp War Pro Fac Res Qua Res Tes Acc Traps Triggered 16 | . . 1 . . 3 . . 3 . 2 2 . . . . . . 3 2 . . . . Indirectly . | . . . . . . . . . . . . . . . . . . . . . . . . Trap Hack Attempts . | . . . . . . . . . . . . . . . . . . . . . . . . Triggered . | . . . . . . . . . . . . . . . . . . . . . . . . Disarmed . | . . . . . . . . . . . . . . . . . . . . . . . . Reprogrammed . | . . . . . . . . . . . . . . . . . . . . . . . . Reused . | . . . . . . . . . . . . . . . . . . . . . . . . Traps Extracted . | . . . . . . . . . . . . . . . . . . . . . . . . Installed . | . . . . . . . . . . . . . . . . . . . . . . . . Triggered 15 | . . . . . . 1 . . . . . . . . . 14 . . . . . . . Machines | -11 -10 -9 -9 -8 -7 -7 -7 -6 -6 -6 -5 -5 -5 -5 -5 -5 -4 -4 -3 -3 -2 -2 -1 ---------- Run | Scr Mat Mat Min Mat Fac Low Low Fac Was Fac Fac Was Fac Upp Upp War Pro Fac Res Qua Res Tes Acc Machines Disabled 18 | . . . . 3 . . . . . . . . 2 . . 1 . . 1 5 . 4 2 Max in Single Turn 1 | . . . . 1 . . . . . . . . 1 . . 1 . . 1 1 . 1 1 Garrison Access 4 | . . . . . . . . . . . . . 1 . . . . . . . 2 1 . Machines Sabotaged . | . . . . . . . . . . . . . . . . . . . . . . . . Garrisons Compromised 1 | . . . . . . . . 1 . . . . . . . . . . . . . . . Overloaded Fab Kills . | . . . . . . . . . . . . . . . . . . . . . . . . Fab Network Shutdowns . | . . . . . . . . . . . . . . . . . . . . . . . . Hacking | -11 -10 -9 -9 -8 -7 -7 -7 -6 -6 -6 -5 -5 -5 -5 -5 -5 -4 -4 -3 -3 -2 -2 -1 --------- Run | Scr Mat Mat Min Mat Fac Low Low Fac Was Fac Fac Was Fac Upp Upp War Pro Fac Res Qua Res Tes Acc Machines Accessed 62 | . 3 3 . 4 7 . . 6 . 1 . . 2 . 1 8 1 1 4 6 3 7 5 Terminals 41 | . 3 3 . 4 4 . . 2 . 1 . . 1 . 1 . 1 1 3 5 1 6 5 Fabricators 3 | . . . . . 1 . . 1 . . . . . . . . . . 1 . . . . Repair Stations 1 | . . . . . . . . 1 . . . . . . . . . . . . . . . Recycling Units 4 | . . . . . 2 . . 2 . . . . . . . . . . . . . . . Scanalyzers . | . . . . . . . . . . . . . . . . . . . . . . . . Garrison Access 5 | . . . . . . . . . . . . . 1 . . . . . . 1 2 1 . Total Hacks 153 | . 12 9 . 17 22 . . 14 . 1 . . 2 . 1 19 1 2 8 14 5 17 9 Successful 82 | . 4 7 . 8 13 . . 7 . . . . 1 . 1 19 1 . 3 3 2 10 3 Failed 69 | . 7 2 . 8 9 . . 7 . 1 . . 1 . . . . 2 5 11 3 7 6 Catastrophic 13 | . . . . 1 1 . . . . 1 . . 1 . . . . . 2 4 . 2 1 Database Lockouts 2 | . 1 . . 1 . . . . . . . . . . . . . . . . . . . Manual 85 | . 12 8 . 10 18 . . 9 . . . . 1 . . . . . 3 4 4 13 3 Terminals 107 | . 12 9 . 17 10 . . 7 . 1 . . 1 . 1 . 1 2 6 13 2 16 9 Fabricators 7 | . . . . . 4 . . 1 . . . . . . . . . . 2 . . . . Repair Stations 3 | . . . . . . . . 3 . . . . . . . . . . . . . . . Recycling Units 11 | . . . . . 8 . . 3 . . . . . . . . . . . . . . . Scanalyzers . | . . . . . . . . . . . . . . . . . . . . . . . . Garrison Access 6 | . . . . . . . . . . . . . 1 . . . . . . 1 3 1 . Terminal Hacks 42 | . 1 5 . 6 . . . . . . . . . . 1 19 1 . 1 3 . 3 2 Record 21 | . . . . 1 . . . . . . . . . . 1 17 1 . . 1 . . . Robot Analysis 6 | . 1 2 . 2 . . . . . . . . . . . . . . . . . 1 . Prototype ID Bank 1 | . . . . . . . . . . . . . . . . . . . . 1 . . . Open Door 2 | . . . . . . . . . . . . . . . . 2 . . . . . . . Level Access Points 2 | . . . . . . . . . . . . . . . . . . . . . . 1 1 Branch Access Points 1 | . . . . . . . . . . . . . . . . . . . 1 . . . . Terminal Index 2 | . . 1 . . . . . . . . . . . . . . . . . . . . 1 Alert Level 2 | . . 1 . 1 . . . . . . . . . . . . . . . . . . . Unreport Threat 3 | . . 1 . 2 . . . . . . . . . . . . . . . . . . . Hauler Manifests 1 | . . . . . . . . . . . . . . . . . . . . 1 . . . Protovariant Controls 1 | . . . . . . . . . . . . . . . . . . . . . . 1 . Fabricator Hacks . | . . . . . . . . . . . . . . . . . . . . . . . . Repair Station Hacks 1 | . . . . . . . . 1 . . . . . . . . . . . . . . . Scan Component 1 | . . . . . . . . 1 . . . . . . . . . . . . . . . Recycling Unit Hacks 1 | . . . . . 1 . . . . . . . . . . . . . . . . . . Retrieve Components 1 | . . . . . 1 . . . . . . . . . . . . . . . . . . Scanalyzer . | . . . . . . . . . . . . . . . . . . . . . . . . Garrison Access Hacks 2 | . . . . . . . . . . . . . 1 . . . . . . . . 1 . Seal Access 2 | . . . . . . . . . . . . . 1 . . . . . . . . 1 . Unauthorized Hacks 36 | . 3 2 . 2 12 . . 6 . . . . . . . . . . 2 . 2 6 1 Terminals 21 | . 3 2 . 2 4 . . 2 . . . . . . . . . . . . 1 6 1 Track 2 | . . . . . . . . . . . . . . . . . . . . . . 2 . Assimilate 3 | . 1 . . . 1 . . . . . . . . . . . . . . . . 1 . Botnet 13 | . 2 2 . 2 3 . . 2 . . . . . . . . . . . . 1 . 1 Disrupt 3 | . . . . . . . . . . . . . . . . . . . . . . 3 . Fabricators 6 | . . . . . 3 . . 1 . . . . . . . . . . 2 . . . . Report 3 | . . . . . 1 . . 1 . . . . . . . . . . 1 . . . . Siphon 1 | . . . . . 1 . . . . . . . . . . . . . . . . . . Haulers 2 | . . . . . 1 . . . . . . . . . . . . . 1 . . . . Repair Stations . | . . . . . . . . . . . . . . . . . . . . . . . . Recycling Units 8 | . . . . . 5 . . 3 . . . . . . . . . . . . . . . Monitor 2 | . . . . . 1 . . 1 . . . . . . . . . . . . . . . Reject 3 | . . . . . 2 . . 1 . . . . . . . . . . . . . . . Recyclers 2 | . . . . . 1 . . 1 . . . . . . . . . . . . . . . Mask 1 | . . . . . 1 . . . . . . . . . . . . . . . . . . Scanalyzers . | . . . . . . . . . . . . . . . . . . . . . . . . Garrison Access 1 | . . . . . . . . . . . . . . . . . . . . . 1 . . Jam 1 | . . . . . . . . . . . . . . . . . . . . . 1 . . Data Cores Recovered 1 | . . . . 1 . . . . . . . . . . . . . . . . . . . Used . | . . . . . . . . . . . . . . . . . . . . . . . . Hacking Detections 46 | . 3 3 . 4 6 . . 5 . 1 . . 1 . . . . 1 4 5 2 6 5 Full Trace Events 6 | . 3 1 . . . . . 1 . . . . . . . . . . . . . . 1 Feedback Events . | . . . . . . . . . . . . . . . . . . . . . . . . Feedback Blocked . | . . . . . . . . . . . . . . . . . . . . . . . . Robot Schematics Acquired . | . . . . . . . . . . . . . . . . . . . . . . . . Robots Built . | . . . . . . . . . . . . . . . . . . . . . . . . Matter . | . . . . . . . . . . . . . . . . . . . . . . . . Time . | . . . . . . . . . . . . . . . . . . . . . . . . Total Robot Build Rating . | . . . . . . . . . . . . . . . . . . . . . . . . Part Schematics Acquired . | . . . . . . . . . . . . . . . . . . . . . . . . Parts Built . | . . . . . . . . . . . . . . . . . . . . . . . . Matter . | . . . . . . . . . . . . . . . . . . . . . . . . Time . | . . . . . . . . . . . . . . . . . . . . . . . . Total Part Build Rating . | . . . . . . . . . . . . . . . . . . . . . . . . Parts Repaired . | . . . . . . . . . . . . . . . . . . . . . . . . Time . | . . . . . . . . . . . . . . . . . . . . . . . . Parts Recycled . | . . . . . . . . . . . . . . . . . . . . . . . . Recycled Matter . | . . . . . . . . . . . . . . . . . . . . . . . . Retrieved Matter . | . . . . . . . . . . . . . . . . . . . . . . . . Retrieved Components 10 | . . . . . 10 . . . . . . . . . . . . . . . . . . Parts Scanalyzed . | . . . . . . . . . . . . . . . . . . . . . . . . Part Schematics Acquired . | . . . . . . . . . . . . . . . . . . . . . . . . Parts Damaged . | . . . . . . . . . . . . . . . . . . . . . . . . Bothacking | -11 -10 -9 -9 -8 -7 -7 -7 -6 -6 -6 -5 -5 -5 -5 -5 -5 -4 -4 -3 -3 -2 -2 -1 ------------ Run | Scr Mat Mat Min Mat Fac Low Low Fac Was Fac Fac Was Fac Upp Upp War Pro Fac Res Qua Res Tes Acc Used RIF Installer . | . . . . . . . . . . . . . . . . . . . . . . . . Robots Hacked . | . . . . . . . . . . . . . . . . . . . . . . . . Non-combat . | . . . . . . . . . . . . . . . . . . . . . . . . Combat . | . . . . . . . . . . . . . . . . . . . . . . . . Robot Hacks Applied . | . . . . . . . . . . . . . . . . . . . . . . . . Relay Couplers Released 4 | . . . . . . . . . . . . . . . . . . . . . 4 . . Programmers 4 | . . . . . . . . . . . . . . . . . . . . . 4 . . Robots Rewired . | . . . . . . . . . . . . . . . . . . . . . . . . Allies Hacked . | . . . . . . . . . . . . . . . . . . . . . . . . Hacks Repelled . | . . . . . . . . . . . . . . . . . . . . . . . . Allies | -11 -10 -9 -9 -8 -7 -7 -7 -6 -6 -6 -5 -5 -5 -5 -5 -5 -4 -4 -3 -3 -2 -2 -1 -------- Run | Scr Mat Mat Min Mat Fac Low Low Fac Was Fac Fac Was Fac Upp Upp War Pro Fac Res Qua Res Tes Acc Total Allies 23 | . . . . . 1 . . 3 . . . 19 . . . . . . . . . . . Largest Group 19 | . . . . . 1 . . 3 . . . 19 18 . . . . . . . . . . Highest-Rated Group 714 | . . . . . 10 . . 93 . . . 714 681 . . . . . . . . . . Highest-Rated Ally 50 | . . . . . 10 . . 31 . . . 50 50 . . . . . . . . . . Total Orders 3 | . . . . . . . . . . . . . . . . 3 . . . . . . . RETURN 3 | . . . . . . . . . . . . . . . . 3 . . . . . . . Ally Attacks 249 | . . . . . . . . 11 . . . 137 101 . . . . . . . . . . Total Damage 10096 | . . . . . . . . 170 . . . 5462 4464 . . . . . . . . . . Kills 49 | . . . . . . . . 2 . . . 7 40 . . . . . . . . . . Allies Corrupted . | . . . . . . . . . . . . . . . . . . . . . . . . Allies Melted 2 | . . . . . . . . . . . . . 1 . . . . . . . 1 . . Intel | -11 -10 -9 -9 -8 -7 -7 -7 -6 -6 -6 -5 -5 -5 -5 -5 -5 -4 -4 -3 -3 -2 -2 -1 ------- Run | Scr Mat Mat Min Mat Fac Low Low Fac Was Fac Fac Was Fac Upp Upp War Pro Fac Res Qua Res Tes Acc Robot Analysis Total 6 | . 1 2 . 2 . . . . . . . . . . . . . . . . . 1 . Derelict Logs Recovered 5 | . . . . . . . . . . . . . . 2 2 . 1 . . . . . . Drone Launches 3 | . . . . . . . . . . . . . . . . 3 . . . . . . . Drone Recoveries 3 | . . . . . . . . . . . . . . . . 3 . . . . . . . Exploration | -11 -10 -9 -9 -8 -7 -7 -7 -6 -6 -6 -5 -5 -5 -5 -5 -5 -4 -4 -3 -3 -2 -2 -1 ------------- Run | Scr Mat Mat Min Mat Fac Low Low Fac Was Fac Fac Was Fac Upp Upp War Pro Fac Res Qua Res Tes Acc Turns Passed 12759 | 38 855 1002 295 706 1971 889 104 1446 106 118 233 289 493 207 291 521 380 289 388 371 977 565 225 Spaces Moved 14160 | 27 557 399 155 304 983 511 51 621 103 214 419 369 809 375 651 1003 768 563 692 717 2253 1124 492 Core 753 | . . . . . . . . . 92 214 419 27 . . . 1 . . . . . . . Treads 2653 | . . 172 . 304 983 511 51 621 11 . . . . . . . . . . . . . . Legs . | . . . . . . . . . . . . . . . . . . . . . . . . Wheels 966 | 27 557 227 155 . . . . . . . . . . . . . . . . . . . . Hover 9552 | . . . . . . . . . . . . 106 809 375 651 1002 768 563 692 717 2253 1124 492 Flight 236 | . . . . . . . . . . . . 236 . . . . . . . . . . . Fastest Speed 31 | 80 80 160 190 160 160 160 160 160 50 50 50 40 40 43 43 43 43 36 42 42 31 31 31 Average Speed 68 | 80 86 174 190 160 160 160 185 160 65 50 50 59 44 43 43 43 43 41 42 42 33 31 31 Slowest Speed 850 | 80 105 260 190 160 260 160 260 260 260 50 50 110 110 43 43 850 43 42 42 42 35 31 31 Overloaded Moves . | . . . . . . . . . . . . . . . . . . . . . . . . Propulsion Burnouts . | . . . . . . . . . . . . . . . . . . . . . . . . Robots Hopped 1 | . . . . . . . . . . . . . 1 . . . . . . . . . . Cave-ins Triggered . | . . . . . . . . . . . . . . . . . . . . . . . . Exploration Rate (%) 43 | 3 53 32 43 30 27 77 9 15 73 7 11 84 15 61 77 94 86 7 18 69 60 72 18 Regions Visited 23 Branch Regions 9 Pre-discovered Areas 3 | . . . . . . . . . . . . . . 1 1 1 . . . . . . . Known Exits Taken 10 | . . . . . . . . . . . . . 1 1 1 1 1 1 1 1 1 1 . Unknown Exits Taken 9 | 1 1 1 1 1 1 1 1 . . 1 . . . . . . . . . . . . . Scrap Searched 11 | . . . 1 . . 2 . . . . . . . 2 4 . 2 . . . . . . Spaces Dug 61 | . . . . . . . . 1 . . . . . . 2 . 5 . 8 4 9 25 7 Terrain Destroyed 236 | . . 13 . 24 14 . . 51 73 . . . 1 . 2 . 5 . 8 4 9 25 7 Melee 45 | . . . . . . . . . . . . . . . 1 . 5 . 8 4 8 13 6 Projectile 23 | . . . . . . . . 8 . . . . . . 1 . . . . . 1 12 1 AOE 167 | . . 13 . 24 14 . . 43 73 . . . . . . . . . . . . . . Terrain Rammed . | . . . . . . . . . . . . . . . . . . . . . . . . Walls Destroyed . | . . . . . . . . . . . . . . . . . . . . . . . . Machines Disabled . | . . . . . . . . . . . . . . . . . . . . . . . . Actions | -11 -10 -9 -9 -8 -7 -7 -7 -6 -6 -6 -5 -5 -5 -5 -5 -5 -4 -4 -3 -3 -2 -2 -1 --------- Run | Scr Mat Mat Min Mat Fac Low Low Fac Was Fac Fac Was Fac Upp Upp War Pro Fac Res Qua Res Tes Acc Total 16265 | 37 820 572 156 449 1259 561 55 929 125 225 443 439 908 420 658 1081 808 601 751 768 2402 1272 526 Wait 728 | . 162 36 . 43 90 4 . 112 2 2 . 45 3 42 2 19 30 8 18 5 31 69 5 Move 14136 | 26 556 398 154 303 982 510 50 621 102 213 419 368 806 374 650 1002 767 562 691 716 2252 1123 491 Hop 1 | . . . . . . . . . . . . . 1 . . . . . . . . . . Pick Up 174 | 4 14 25 1 18 21 7 . 24 3 3 1 8 15 . 2 5 . . 7 3 12 1 . Fast Attach 144 | . 3 3 . 2 8 3 . 10 . 3 . 8 21 2 . 20 2 1 4 11 23 18 2 Attach 68 | . 4 6 . 6 5 3 1 23 5 . . . 1 . . 1 . 2 2 1 3 . 5 Detach 15 | . . 1 . . . 1 . 5 . . . . . . . 2 . 1 . 1 1 . 3 Swap 110 | 2 2 13 . 13 21 8 2 26 . . . . 4 . 1 . 2 1 . 4 8 3 . Drop 250 | 2 9 14 1 16 33 8 . 18 3 4 1 10 23 2 1 27 2 . 9 14 33 19 1 Fire 413 | 3 70 76 . 46 76 10 2 71 10 . . . 34 . 1 . . . . . 1 12 1 Melee 140 | . . . . . . 3 . . . . . . . . 1 5 5 10 20 13 38 27 18 Ram 22 | . . . . . . . . . . . 22 . . . . . . . . . . . . Kick . | . . . . . . . . . . . . . . . . . . . . . . . . Crush 48 | . . . . 2 23 4 . 19 . . . . . . . . . . . . . . . Escape Stasis 16 | . . . . . . . . . . . . . . . . . . 16 . . . . . Rewire . | . . . . . . . . . . . . . . . . . . . . . . . . Trap . | . . . . . . . . . . . . . . . . . . . . . . . . Miscellaneous . | . . . . . . . . . . . . . . . . . . . . . . . . Route ------- -11/Scrapyard -10/Materials -9/Materials (discovered 3 exits: [*Min x2] / [*Sto]) -9/Mines -8/Materials -7/Factory -7/Lower Caves -7/Lower Caves -6/Factory -6/Waste -6/Factory -5/Factory -5/Waste -5/Factory -5/Upper Caves -5/Upper Caves -5/Warlord -4/Proximity Caves -4/Factory -3/Research (discovered 2 exits: *Qua x2) -3/Quarantine -2/Research (discovered 2 exits: *Acc / *Tes) -2/Testing -1/Access To Epsilon Eridani History --------- Turn | Location | Event 11 | -11/Scrapyard | Discovered new exit (range 3) 39 | -11/Scrapyard | Entered Materials 315 | -10/Materials | Build established: Mutant 486 | -10/Materials | Discovered new exit (range 12) 562 | -10/Materials | Central database locked down 632 | -10/Materials | Core integrity fell below 50% 894 | -10/Materials | Entered another Materials area 894 | -9/Materials | Evolved 2 slots: Propulsion x2 1461 | -9/Materials | Discovered new exit (range 12) 1585 | -9/Materials | Discovered new exit (range 7) 1776 | -9/Materials | Discovered new exit (range 16) 1896 | -9/Materials | Entered Mines 2056 | -9/Mines | A weapon hastily lodged in a ceiling crevice suddenly fell to the ground 2079 | -9/Mines | Build established: Scavenger-Mutant 2187 | -9/Mines | Discovered new exit (range 2) 2191 | -9/Mines | Entered Materials 2191 | -8/Materials | Evolved 2 slots: Propulsion x2 2570 | -8/Materials | Central database locked down 2663 | -8/Materials | Discovered new exit (range 15) 2897 | -8/Materials | Entered Factory 2897 | -7/Factory | Evolved 2 slots: Utility x1, Weapon x1 3194 | -7/Factory | Build established: Scavenger-Skirmisher 4042 | -7/Factory | Garrison activated, responded to threat 4410 | -7/Factory | Lost 3 parts (3n) 4515 | -7/Factory | Build established: Scavenger-Gunner 4767 | -7/Factory | Discovered new exit (range 12) 4868 | -7/Factory | Entered Lower Caves 5210 | -7/Lower Caves | System corruption reached 10% 5211 | -7/Lower Caves | Encountered a Warlord checkpoint 5242 | -7/Lower Caves | Attracted the attention of an 0b10 checkpoint 5731 | -7/Lower Caves | Discovered new exit (range 15) 5757 | -7/Lower Caves | Entered another Lower Caves area 5764 | -7/Lower Caves | Discovered new exit (range 10) 5771 | -7/Lower Caves | Attracted the attention of an 0b10 checkpoint 5861 | -7/Lower Caves | Entered Factory 5861 | -6/Factory | Evolved 2 slots: Utility x2 6597 | -6/Factory | Destroyed 9 combat bots 6598 | -6/Factory | Lost 4 parts (2n2u) 7151 | -6/Factory | Garrison activated, responded to threat 7197 | -6/Factory | Spotted B-75 Beast 7220 | -6/Factory | Lost 4 parts (2n1u1w) 7226 | -6/Factory | Cargo convoy interrupted 7248 | -6/Factory | System corruption reached 10% 7249 | -6/Factory | Allied Derelicts emerged from ambush trap array 7307 | -6/Factory | Sucked down chute 7307 | -6/Factory | Entered Waste 7322 | -6/Waste | EMP discharged 7337 | -6/Waste | Lost 6 parts (4n2w) 7341 | -6/Waste | Spotted C-40 Crusher 7352 | -6/Waste | Spotted C-40 Crusher 7362 | -6/Waste | Crushed by Compactor (1 part destroyed, 2 dropped) 7365 | -6/Waste | Crushed by Compactor (1 part destroyed, 2 dropped) 7376 | -6/Waste | Spotted C-40 Crusher 7396 | -6/Waste | Lost 3 parts (2n1w) 7396 | -6/Waste | Spotted C-40 Crusher 7408 | -6/Waste | Spotted C-40 Crusher 7408 | -6/Waste | Spotted C-40 Crusher 7409 | -6/Waste | Discovered new exit (range 10) 7413 | -6/Waste | Entered Factory 7497 | -6/Factory | Core integrity fell below 50% 7516 | -6/Factory | Discovered new exit (range 15) 7526 | -6/Factory | Core integrity fell below 20% 7531 | -6/Factory | Entered another Factory area 7531 | -5/Factory | Evolved 2 slots: Power x1, Utility x1 7655 | -5/Factory | Build established: Mutant 7764 | -5/Factory | Sucked down chute 7764 | -5/Factory | Entered Waste 7774 | -5/Waste | Spotted C-40 Crusher 7779 | -5/Waste | Spotted C-40 Crusher 7779 | -5/Waste | Spotted C-40 Crusher 7780 | -5/Waste | Spotted C-40 Crusher 7783 | -5/Waste | Spotted C-40 Crusher 7794 | -5/Waste | Spotted C-40 Crusher 7807 | -5/Waste | Discovered new exit (range 11) 7812 | -5/Waste | Warlord forces began an assault 7824 | -5/Waste | Allies destroyed C-40 Crusher 7828 | -5/Waste | Allies destroyed C-40 Crusher 7830 | -5/Waste | Allies destroyed C-40 Crusher 7837 | -5/Waste | Allies destroyed C-40 Crusher 7845 | -5/Waste | Allies destroyed C-40 Crusher 7853 | -5/Waste | Found Damper Plating 8053 | -5/Waste | Entered Factory 8053 | -5/Factory | Accompanied by 18 allies 8137 | -5/Factory | Discovered new exit (range 2) 8497 | -5/Factory | Build established: Scavenger-Mutant 8545 | -5/Factory | Identified exit to Upper Caves 8546 | -5/Factory | Entered Upper Caves 8571 | -5/Upper Caves | Learned Factory terminal intel 8703 | -5/Upper Caves | Discovered new exit (range 11) 8707 | -5/Upper Caves | Identified exit to Upper Caves 8729 | -5/Upper Caves | Learned location of Armory (-4) 8753 | -5/Upper Caves | Entered another Upper Caves area 8765 | -5/Upper Caves | Attracted the attention of an 0b10 checkpoint 8832 | -5/Upper Caves | Encountered a Warlord checkpoint 8844 | -5/Upper Caves | Discovered new exit (range 13) 8854 | -5/Upper Caves | Identified exit to Warlord 9007 | -5/Upper Caves | Learned location of 1 exit from Factory 9044 | -5/Upper Caves | Entered Warlord 9099 | -5/Warlord | Found Prototype Device 9099 | -5/Warlord | Identified Minesniffer Drone Bay 9210 | -5/Warlord | Learned Armory garrison access intel 9210 | -5/Warlord | Learned Research garrison access intel 9211 | -5/Warlord | Learned Testing trap positions 9260 | -5/Warlord | Warlord's base attacked by MAIN.C 9278 | -5/Warlord | Found Prototype Launcher 9278 | -5/Warlord | Identified Vortex Catalyst Activator 9281 | -5/Warlord | Found Prototype Energy Cannon 9281 | -5/Warlord | Identified Vortex Cannon 9381 | -5/Warlord | Met Warlord 9421 | -5/Warlord | Found Prototype Reactor 9421 | -5/Warlord | Identified Vortex Chain Reactor 9430 | -5/Warlord | Found Prototype Device 9430 | -5/Warlord | Identified Exp. Phase Shifter 9453 | -5/Warlord | Found Prototype Processor 9453 | -5/Warlord | Identified Exp. Target Analyzer 9455 | -5/Warlord | Found Prototype Device 9455 | -5/Warlord | Identified System Purifier 9554 | -5/Warlord | Opened side exit 9562 | -5/Warlord | Discovered new exit (range 9) 9563 | -5/Warlord | Spotted Executioner 9565 | -5/Warlord | Identified exit to Proximity Caves 9565 | -5/Warlord | Entered Proximity Caves 9732 | -4/Proximity Caves | Learned Research emergency access door positions 9749 | -4/Proximity Caves | Build established: Mutant 9859 | -4/Proximity Caves | Discovered new exit (range 14) 9866 | -4/Proximity Caves | Identified exit to Factory 9945 | -4/Proximity Caves | Entered Factory 9945 | -4/Factory | Evolved 2 slots: Propulsion x1, Utility x1 9946 | -4/Factory | Identified exit to Research 9947 | -4/Factory | Loaded intel: 19 terminal locations 10234 | -4/Factory | Entered Research 10234 | -3/Research | Evolved 2 slots: Utility x2 10236 | -3/Research | Loaded intel: 4 garrison access locations 10387 | -3/Research | Identified exit to Quarantine 10622 | -3/Research | Entered Quarantine 10834 | -3/Quarantine | Cryocooling Duct disabled 10849 | -3/Quarantine | Ambient heat levels rising (+20) 10849 | -3/Quarantine | Non-combat units ordered to evacuate 10880 | -3/Quarantine | Found Alien Artifact 10880 | -3/Quarantine | Identified Subatomic Replicator 10924 | -3/Quarantine | Found Alien Artifact 10924 | -3/Quarantine | Identified Terrabomb 10924 | -3/Quarantine | Used Terrabomb 10933 | -3/Quarantine | System corruption reached 10% 10940 | -3/Quarantine | Found Alien Slashing Weapon 10940 | -3/Quarantine | Identified Sigix Broadsword 10982 | -3/Quarantine | Discovered new exit (range 12) 10992 | -3/Quarantine | Identified exit to Research 10993 | -3/Quarantine | Entered Research 10993 | -2/Research | Warlord forces began assault on 0b10 10993 | -2/Research | Evolved 2 slots: Propulsion x1, Utility x1 11010 | -2/Research | Found Prototype Processor 11010 | -2/Research | Identified Exp. Melee Analysis Suite 11103 | -2/Research | Research machine network offline 11131 | -2/Research | Found Prototype Processor 11131 | -2/Research | Identified Exp. Core Analyzer 11231 | -2/Research | Spotted B-90 Cyclops 11336 | -2/Research | Borebot progress halted 11406 | -2/Research | Found Prototype Processor 11406 | -2/Research | Identified Exp. Targeting Computer 11513 | -2/Research | Found Prototype Device 11513 | -2/Research | Identified Exp. Focal Shield 11528 | -2/Research | Met up with Warlord 11583 | -2/Research | Spotted Executioner 11586 | -2/Research | Spotted Executioner 11646 | -2/Research | Destroyed Executioner 11655 | -2/Research | Found Prototype Device 11655 | -2/Research | Identified Adv. Kinecellerator 11702 | -2/Research | Borebot progress halted 11750 | -2/Research | Borebot progress halted 11785 | -2/Research | Build established: Sprinter 11789 | -2/Research | Discovered new exit (range 4) 11790 | -2/Research | Identified exit to Access 11936 | -2/Research | Spotted B-90 Cyclops 11951 | -2/Research | Discovered new exit (range 10) 11969 | -2/Research | Identified exit to Testing 11970 | -2/Research | Entered Testing 11971 | -2/Testing | Loaded intel: 7 trap records 11999 | -2/Testing | Found Prototype Energy Gun 11999 | -2/Testing | Identified Tachyon Dispersion Ray 12019 | -2/Testing | Found Prototype Device 12019 | -2/Testing | Identified Exp. Force Field 12027 | -2/Testing | Found Prototype Device 12027 | -2/Testing | Identified Exp. Shock Absorption System 12050 | -2/Testing | Found Prototype Hackware 12063 | -2/Testing | Identified System Mapper 12255 | -2/Testing | Build established: Hacker-Sprinter 12475 | -2/Testing | Found Prototype Device 12475 | -2/Testing | Identified AEGIS Remote Shield 12533 | -2/Testing | Spotted Alpha 7 12535 | -2/Testing | Entered Access 12535 | -1/Access | Evolved 2 slots: Utility x1, Weapon x1 12536 | -1/Access | Used Subatomic Replicator to replicate Sigix Broadsword 12560 | -1/Access | Spotted B-99 Colossus 12581 | -1/Access | Identified exit to Surface 12736 | -1/Access | Spotted B-99 Colossus 12736 | -1/Access | Spotted B-99 Colossus 12760 | *** | Escaped! Last Messages --------------- 12744_ Slug penetrates B-99 Colossus. 12745_ Acquired 3 matter. 12746_ Penetrated by Slug. 12746_ Slug penetrates Sealed Heavy Doors. 12746_ Penetrated by Slug. 12748_ Slug penetrates Sealed Heavy Doors. 12748_ Penetrated by Slug. 12748_ Slug penetrates Sealed Heavy Doors. 12748_ Penetrated by Slug. 12748_ Slug penetrates Sealed Heavy Doors. 12750_ Penetrated by Slug. 12750_ Slug penetrates Sealed Heavy Doors. 12751_ B-99 Colossus activates siege mode. 12751_ Slug penetrates Sealed Heavy Doors. 12751_ Penetrated by Slug. 12751_ Slug penetrates Sealed Heavy Doors. 12751_ Penetrated by Slug. 12753_ Slug penetrates Sealed Heavy Doors. 12755_ Main Access Shell breached. 12757_ Slug penetrates Sealed Heavy Doors. Map ----- +----------------------------------------------------+ | # ## !! # #????????????????????? | | # " ]## # #????????????????????? | | # """ ## # #????????????????????? | | # """ ## / #????????????????????? | | "" # " ## # #????????????????????? | | "" ######??### # #????????????????????? | | #?????????########## ###??????????????????? | | #????????????????# #?????######???????? | | #????????????????# ####### #???????? | | #????????????????# #???????? | | #######????????????????# +???????? | | ? ???????????????# ####### ] #???????? | | ? #?????????????# #?????## ##???????? | | ? #?????????????###"####??????# #????????? | | #???????????????###?????????# #????????? | | ? #???????????????????????????# #????????? | | " #???????????????????????????# #????????? | | """ #???????????????????????????# #????????? | | """ #???????????????????????????# ########## | | " #???????????????????????????# ## # | | " #########??###???????"####### ## # | | # "??" ???????" ## # | | ?? # BB "??" ???????" ## # | | ####"#+##" BB "??" """"""??" ## # | | "??" " "??" ## # | | % """" " "@ "??" ## # | | "" "??" ## # | | % """" " "??" ## + | | ######+### BB%"??" """"""??" ## "" # | | ?????????# BB "??" ???????"""" """ ## "" # | | ?????????# "??" ??????""""T""" "" "" + | | ?????????#########??#####?????"####### ## T" # | | ?????????????????????????????????????# ## """ # | | ?????????????????????????????????????# ## "" # | | ?????????????????????????????????????# ## # | | ?????????????????????????????????????# ## # | | ?????????????????????????????????????+ ########## | | ?????????????????????????????????????# #????????? | | ?????????????????????????????????????+ #????????? | | ?????????????????????????????????????# ^#????????? | | ?????????????????????????????????????# #????????? | | ?????????????????????????????????????# #????????? | | ?????????????????????????????????????# #????????? | | ?????????????????????????????????????# ?????????? | | ?????????????????????????????????????? ?????????? | | ?????????????????????????????????????? ?????????? | | ?????????????????????????????????????? ?????????? | | ?????????????????????????????????????????????????? | | ?????????????????????????????????????????????????? | | ?????????????????????????????????????????????????? | +----------------------------------------------------+ Best States ------------- Heat Dissipation 87 Coolant Potential 65 Energy Generation 70 Energy Capacity 1300 Matter Stores 300 Matter Capacity 300 Sight Range 23 Robot Scan Range 18 Terrain Scan Range 16 Terrain Scan Density 10 Power Amplification 30 Additional Mass Support 12 Armor Coverage 225 Resistance: KI 30 Core Shielding 40 Power Shielding 90 Utility Shielding 66 Phase Shifting 20 Evasion (%) 87 Targeting Accuracy 24 Melee Accuracy 12 Target Analysis 10 Recoil Reduction 6 Offensive Hacking 20 Defensive Hacking 10 Item Schematics ----------------- None Robot Schematics ------------------ None Fabricated ------------ Nothing Alien Tech Used ----------------- Subatomic Replicator Terrabomb Sigix Broadsword Achievements -------------- None Challenges ------------ None Game ------ Seed FrostFissionNullifier Manual? 0 Play Time 03:39:54 Cumulative 235.5 hours Start 2021.07.08 @ 22:02:35 End 2021.07.09 @ 01:46:57 Sessions 1 Manual Loads 0 Difficulty Rogue Special Mode None Game No. 134 Rogue 134 Adventurer 0 Explorer 0 Win Type 0 Total 4 Types 3/0/0/1/0/0/0/0/0 Lore% 67 Gallery% 77 Achievement% 52 Wizard Run 0 Options --------- ASCII 0 Keyboard 0 Movement Numpad Keybinds 0 Fullscreen 1 Font 18/SmallcapsGlow Map View 76x50 Tactical HUD 1 Map Filters NONE Filters NONE Steam 1 RUN: 120ee9d4-f1d4-4bf6-bb90-8a451af9dd4a